fUST/lending_fUST_20250620
["ID","MTS","AMOUNT","RATE_DAILY","PERIOD"]
[366654912,1750378241463,-500.0,0.00024873,2]
[366654914,1750378241473,-500.0,0.00024873,2]
[366654915,1750378241483,-501.17278278,0.00024873,2]
[366654917,1750378241492,-500.0,0.00024873,2]
[366654918,1750378241502,-500.0,0.00024873,2]
[366654920,1750378241511,-500.0,0.00024873,2]
[366654921,1750378241522,-305.08338277,0.00024873,2]
[366654923,1750378241532,-500.0,0.00024873,2]
[366654924,1750378241541,-500.0,0.00024873,2]
[366654926,1750378241551,-151.0,0.00024873,7]
[366654927,1750378241560,-500.0,0.00024877,2]
[366654929,1750378241571,-150.5,0.0002488,120]
[366654930,1750378241580,-150.5,0.0002488,120]
[366654932,1750378241590,-1050.440186,0.0002488,2]
[366654934,1750378241599,-1050.440186,0.0002488,2]
[366654935,1750378241611,-151.0,0.0002488,7]
[366654937,1750378241620,-9181.24968032,0.0002488,2]
[366654938,1750378241630,-800.0,0.00024881,2]
[366654940,1750378241641,-151.0,0.00024885,7]
[366654941,1750378241650,-151.0,0.00024885,7]
[366654943,1750378241660,-295.53,0.0002489,120]
[366654944,1750378241669,-151.0,0.0002489,7]
[366654946,1750378241679,-244.429948,0.0002489,7]
[366654947,1750378241688,-244.429948,0.0002489,7]
[366654949,1750378241697,-151.0,0.0002489,7]
[366654951,1750378241708,-20657.8117807,0.0002489,2]
[366654952,1750378241718,-7981.39444722,0.000249,2]
[366654954,1750378241727,-8145.43196078,0.000249,2]
[366654955,1750378241739,-76936.8,0.000249,2]
[366654957,1750378241748,-2858.28,0.000249,7]
[366654958,1750378241757,-3771.0,0.000249,2]
[366654959,1750378241768,-3771.0,0.000249,2]
[366654960,1750378241778,-3771.0,0.000249,2]
[366654961,1750378241789,-3771.0,0.000249,2]
[366654962,1750378241800,-3771.0,0.000249,2]
[366654963,1750378241810,-3771.0,0.000249,2]
[366654964,1750378241820,-3771.0,0.000249,2]
[366654965,1750378241829,-3771.0,0.000249,2]
[366654966,1750378241840,-3771.0,0.000249,2]
[366654968,1750378241850,-3771.0,0.000249,2]
[366654969,1750378241860,-207.0,0.000249,2]
[366654971,1750378241870,-151.0,0.000249,7]
[366654972,1750378241880,-151.0,0.000249,7]
[366654974,1750378241890,-151.0,0.000249,7]
[366654975,1750378241900,-151.0,0.000249,7]
[366654977,1750378241911,-160.0,0.000249,7]
[366654979,1750378241922,-106618.22,0.000249,7]
[366654980,1750378241932,-151.0,0.000249,7]
[366654988,1750378241942,-151.0,0.000249,7]
[366654990,1750378242067,-151.0,0.000249,7]
[366654991,1750378242077,-282.036814,0.000249,7]
[366654993,1750378242087,-244.429948,0.000249,7]
[366654994,1750378242097,-244.429948,0.000249,7]
[366654996,1750378242107,-244.429948,0.000249,7]
[366654997,1750378242116,-244.429948,0.000249,7]
[366654999,1750378242126,-244.429948,0.000249,7]
[366655001,1750378242135,-244.429948,0.000249,7]
[366655002,1750378242145,-244.429948,0.000249,7]
[366655004,1750378242154,-244.429948,0.000249,7]
[366655005,1750378242164,-1050.440186,0.000249,2]
[366655007,1750378242174,-1050.440186,0.000249,2]
[366655008,1750378242183,-1050.440186,0.000249,2]
[366655010,1750378242193,-1050.440186,0.000249,2]
[366655011,1750378242202,-1050.440186,0.000249,2]
[366655013,1750378242212,-1050.440186,0.000249,2]
[366655014,1750378242221,-1050.440186,0.000249,2]
[366655016,1750378242230,-1050.440186,0.000249,2]
[366655018,1750378242240,-845.93775772,0.000249,7]
[366655019,1750378242249,-424.78309573,0.000249,7]
[366655021,1750378242258,-7653.51345965,0.000249,2]
[366655022,1750378242267,-230.0259007,0.000249,7]
[366655024,1750378242277,-203.706318,0.000249,7]
[366655025,1750378242286,-203.706318,0.000249,7]
[366655027,1750378242295,-160.0,0.000249,7]
[366655028,1750378242305,-203.706318,0.000249,7]
[366655030,1750378242314,-203.706318,0.000249,7]
[366655031,1750378242324,-836.1357872,0.000249,7]
[366655033,1750378242334,-60005.3589399,0.000249,2]
[366655083,1750378291409,200.0,0.0002376,120]
[366655084,1750378351455,200.0,0.00023901,120]
[366655085,1750378353967,2000.0,0.00021914,120]
[366655086,1750378411891,200.0,0.00024462,120]
[366655087,1750378531020,200.0,0.00023793,120]
[366655088,1750378591650,200.0,0.00024463,120]
[366655091,1750378891197,200.0,0.00024648,120]
[366655092,1750378984293,162.740557,0.00013699,2]
[366655093,1750378987185,188.705654,0.00021316,120]
[366655095,1750379011898,200.0,0.00024381,120]
[366655098,1750379131903,200.0,0.0002388,120]
[366655100,1750379180127,736.8,0.000202,2]
[366655102,1750379271177,700.08697785,0.000246,120]
[366655103,1750379301271,188.0,0.0002,120]
[366655105,1750379315592,1141.32160133,0.0002,120]
[366655106,1750379318297,384.26544301,0.00024108,120]
[366655107,1750379319644,1795.31930967,0.00024,120]
[366655108,1750379323230,150.99999968,0.0002,120]
[366655110,1750379324487,389.46106332,0.00024,120]
[366655111,1750379324522,970.25504164,0.00018,120]
[366655113,1750379325315,218.36392162,0.0001536,120]
[366655115,1750379326495,1010.62928913,0.0002,120]
[366655116,1750379328212,500.97258493,0.0002465,120]
[366655117,1750379328260,236.53963477,0.00024,120]
[366655119,1750379328292,158.92,0.00019216,120]
[366655121,1750379431917,200.0,0.00024421,120]
[366655162,1750379432320,-2361.40600282,0.00020841,2]
[366655164,1750379432331,-192.25450416,0.00020964,2]
[366655166,1750379432341,-500.0,0.00021064,2]
[366655168,1750379432351,-188.705654,0.00021316,2]
[366655171,1750379432360,-300.0,0.00021499,2]
[366655173,1750379432370,-328.0,0.00021499,2]
[366655175,1750379432380,-2663.22723762,0.000215,2]
[366655275,1750379438486,-7102.14130328,0.000215,2]
[366655276,1750379438497,-160.0,0.00021728,2]
[366655277,1750379438507,-789.21,0.00021815,2]
[366655278,1750379438517,-300.0,0.00021916,2]
[366655279,1750379438528,-240.04841208,0.00021916,2]
[366655280,1750379438538,-818.44,0.00021917,6]
[366655281,1750379438547,-400.0,0.00021917,6]
[366655282,1750379438557,-317.77774108,0.00021917,6]
[366655283,1750379438567,-460.0,0.00021917,6]
[366655284,1750379438576,-250.0,0.00021917,6]
[366655285,1750379438586,-430.0,0.00021917,6]
[366655286,1750379438596,-501.56343184,0.00021917,6]
[366655287,1750379438608,-460.0,0.00021917,6]
[366655288,1750379438618,-460.0,0.00021917,6]
[366655289,1750379438628,-332.06859995,0.00021917,6]
[366655290,1750379438637,-460.0,0.00021917,6]
[366655291,1750379438648,-460.0,0.00021917,6]
[366655292,1750379438657,-400.0,0.00021917,6]
[366655293,1750379438667,-61058.86366463,0.00021952,2]
[366655294,1750379438676,-160.0,0.00022006,2]
[366655295,1750379438686,-213.47708638,0.00022006,2]
[366655296,1750379438696,-247.46318242,0.00022008,2]
[366655297,1750379438706,-230.0259007,0.00022021,2]
[366655298,1750379438715,-424.78309573,0.00022021,2]
[366655299,1750379438725,-160.0,0.00022021,2]
[366655300,1750379438735,-836.1357872,0.00022021,2]
[366655301,1750379438744,-160.0,0.0002203,2]
[366655302,1750379438754,-160.0,0.0002203,2]
[366655303,1750379438763,-213.47708638,0.00022076,2]
[366655304,1750379438772,-605.42638909,0.00022091,2]
[366655305,1750379438782,-460.0,0.00022102,2]
[366655306,1750379438792,-460.0,0.00022103,6]
[366655307,1750379438802,-460.0,0.00022103,6]
[366655308,1750379438812,-460.0,0.00022103,6]
[366655309,1750379438821,-460.0,0.00022103,6]
[366655310,1750379438830,-460.0,0.00022103,6]
[366655311,1750379438841,-431.12293682,0.00022103,6]
[366655312,1750379438850,-460.0,0.00022103,6]
[366655313,1750379438860,-460.0,0.00022103,6]
[366655314,1750379438869,-165.01531053,0.00022103,6]
[366655315,1750379438879,-460.0,0.00022188,6]
[366655316,1750379438888,-460.0,0.00022188,6]
[366655317,1750379438898,-460.0,0.00022188,6]
[366655318,1750379438907,-460.0,0.00022188,6]
[366655319,1750379438918,-257.0,0.00022188,6]
[366655320,1750379438927,-460.0,0.00022189,6]
[366655321,1750379438938,-2115.55,0.00022189,6]
[366655322,1750379438948,-440.0,0.00022189,6]
[366655323,1750379438959,-440.0,0.00022189,6]
[366655324,1750379438968,-349.68371732,0.00022189,6]
[366655325,1750379438978,-460.0,0.00022189,6]
[366655326,1750379438988,-460.0,0.00022189,6]
[366655327,1750379438998,-467.35000002,0.00022189,6]
[366655328,1750379439007,-460.0,0.00022189,6]
[366655329,1750379439017,-460.0,0.00022189,6]
[366655330,1750379439027,-410.36992033,0.0002219,6]
[366655331,1750379439037,-168.208,0.0002219,2]
[366655332,1750379439047,-460.0,0.0002219,6]
[366655333,1750379439057,-419.82685192,0.0002219,6]
[366655334,1750379439068,-500.0,0.0002219,2]
[366655335,1750379439078,-500.0,0.0002219,2]
[366655336,1750379439088,-500.0,0.0002219,2]
[366655337,1750379439097,-193.42364775,0.0002219,2]
[366655338,1750379439107,-500.0,0.0002219,2]
[366655339,1750379439117,-500.0,0.0002219,2]
[366655340,1750379439126,-500.0,0.0002219,2]
[366655341,1750379439136,-500.0,0.0002219,2]
[366655342,1750379439146,-500.0,0.0002219,2]
[366655343,1750379439155,-500.0,0.0002219,2]
[366655344,1750379439165,-500.0,0.0002219,2]
[366655345,1750379439175,-500.0,0.0002219,2]
[366655346,1750379439184,-293.10143457,0.0002219,2]
[366655347,1750379439194,-818.44,0.00022191,6]
[366655348,1750379439204,-440.0,0.00022191,6]
[366655349,1750379439213,-460.0,0.00022376,2]
[366655350,1750379439224,-460.0,0.00022377,6]
[366655351,1750379439233,-460.0,0.00022377,6]
[366655352,1750379439243,-460.0,0.00022377,6]
[366655353,1750379439253,-608.54838517,0.00022377,6]
[366655354,1750379439263,-460.0,0.00022462,6]
[366655355,1750379439273,-605.71,0.00022462,6]
[366655356,1750379439283,-460.0,0.00022462,6]
[366655357,1750379439293,-460.0,0.00022463,6]
[366655358,1750379439303,-2115.55,0.00022463,6]
[366655359,1750379439314,-460.0,0.00022463,6]
[366655360,1750379439324,-460.0,0.00022463,6]
[366655361,1750379439334,-460.0,0.00022463,6]
[366655362,1750379439344,-460.0,0.00022464,6]
[366655363,1750379439355,-460.0,0.00022464,6]
[366655364,1750379439365,-460.0,0.00022464,6]
[366655365,1750379439374,-460.0,0.00022464,6]
[366655366,1750379439383,-460.0,0.00022464,6]
[366655367,1750379439393,-818.44,0.00022465,6]
[366655368,1750379439403,-162.740557,0.00022505,2]
[366655369,1750379439414,-605.42638905,0.00022513,2]
[366655370,1750379439423,-500.0,0.0002255,2]
[366655371,1750379439433,-460.0,0.00022651,6]
[366655372,1750379439444,-460.0,0.00022651,6]
[366655373,1750379439455,-460.0,0.00022651,6]
[366655374,1750379439465,-460.0,0.00022736,6]
[366655375,1750379439475,-467.59,0.00022736,6]
[366655376,1750379439486,-549.73,0.00022737,6]
[366655377,1750379439507,-2115.55,0.00022737,6]
[366655378,1750379439519,-460.0,0.00022737,6]
[366655379,1750379439529,-460.0,0.00022738,6]
[366655380,1750379439540,-460.0,0.00022738,6]
[366655381,1750379439549,-460.0,0.00022738,6]
[366655382,1750379439559,-818.44,0.00022739,6]
[366655383,1750379439568,-460.0,0.00022925,6]
[366655384,1750379439578,-409.93,0.00022925,6]
[366655385,1750379439587,-460.0,0.00022925,6]
[366655386,1750379439597,-605.42638905,0.00022935,2]
[366655387,1750379439606,-151.0,0.00022938,7]
[366655388,1750379439616,-182.168866,0.00022938,7]
[366655389,1750379439625,-151.0,0.00022938,7]
[366655390,1750379439634,-500.0,0.00022938,2]
[366655391,1750379439804,-500.0,0.00022938,2]
[366655392,1750379439816,-500.0,0.00022938,2]
[366655393,1750379439826,-207.4,0.00022938,2]
[366655394,1750379439836,-288.1465802,0.00022938,2]
[366655395,1750379439846,-458.27,0.00023,2]
[366655396,1750379439856,-460.0,0.0002301,6]
[366655397,1750379439865,-2115.55,0.00023011,6]
[366655398,1750379439875,-460.0,0.00023011,6]
[366655399,1750379439885,-460.0,0.00023012,6]
[366655400,1750379439895,-818.44,0.00023013,6]
[366655401,1750379439905,-460.0,0.00023199,6]
[366655402,1750379439915,-152.02141137,0.00023199,6]
[366655403,1750379439925,-500.0,0.00023212,2]
[366655404,1750379439935,-2115.55,0.00023285,6]
[366655406,1750379439944,-460.0,0.00023285,6]
[366655408,1750379439954,-198.0,0.00023285,2]
[366655410,1750379439963,-460.0,0.00023286,6]
[366655411,1750379439973,-818.44,0.00023287,6]
[366655412,1750379439983,-605.42638905,0.00023357,2]
[366655413,1750379439993,-460.0,0.00023473,6]
[366655414,1750379440002,-2115.55,0.00023559,6]
[366655415,1750379440012,-460.0,0.00023559,6]
[366655416,1750379440022,-460.0,0.0002356,6]
[366655417,1750379440031,-818.44,0.00023561,6]
[366655418,1750379440041,-2010.35740632,0.0002358,2]
[366655419,1750379440051,-612.56,0.00023588,3]
[366655420,1750379440060,-111100.8763145,0.00023598,2]
[366655421,1750379440070,-60131.8054055,0.000236,2]
[366655422,1750379440079,-500.0,0.00023668,2]
[366655423,1750379440089,-41346.19945634,0.00023687,2]
[366655424,1750379440099,-198.0,0.00023701,2]
[366655425,1750379440108,-460.0,0.00023747,6]
[366655426,1750379440119,-500.0,0.00023773,2]
[366655427,1750379440128,-538.70469555,0.00023773,2]
[366655428,1750379440138,-500.0,0.00023773,2]
[366655429,1750379440148,-605.42638905,0.00023779,2]
[366655430,1750379440159,-204.18,0.0002379,3]
[366655431,1750379440168,-1578.41,0.00023798,2]
[366655432,1750379440179,-276225.01486648,0.000238,2]
[366655458,1750379443385,-844.809936,0.00022021,2]
[366655466,1750379446470,-1.12782172,0.00022021,2]
[366655467,1750379446479,-1000.0,0.00022102,6]
[366655468,1750379446490,-185.39655342,0.0002219,2]
[366655469,1750379446500,-507.65813884,0.00022376,6]
[366655470,1750379446511,-11971.63482703,0.000238,2]
[366655471,1750379446523,-1929.28507595,0.000238,2]
[366655472,1750379446540,-20469.41514114,0.000238,2]
[366655473,1750379446553,-777.72140645,0.000238,2]
[366655474,1750379490998,500.0,0.000202,2]
[366655475,1750379542276,500.0,0.00024657,120]
[366655476,1750379611133,200.0,0.00024381,120]
[366655477,1750379750648,2000.0,0.00022173,120]
[366655478,1750379852478,200.0,0.00024369,120]
[366655480,1750379984549,162.865451,0.00013699,2]
[366655481,1750380091692,200.0,0.00024451,120]
[366655482,1750380331350,200.0,0.00024229,120]
[366655483,1750380518695,1203.0,0.0002,10]
[366655485,1750380631934,200.0,0.00024407,120]
[366655514,1750380632484,-5000.0,0.0002115,2]
[366655517,1750380632495,-792.46,0.0002158,2]
[366655519,1750380632505,-500.0,0.000218,2]
[366655521,1750380632515,-300.0,0.00022041,2]
[366655523,1750380632525,-300.0,0.00022042,2]
[366655525,1750380632535,-403.62150598,0.00022042,2]
[366655530,1750380632642,-37.42345518,0.00022042,2]
[366655532,1750380632652,-500.0,0.00022042,2]
[366655533,1750380632662,-503.25807226,0.00022042,2]
[366655535,1750380632672,-460.0,0.00022043,6]
[366655536,1750380632682,-460.0,0.00022043,6]
[366655538,1750380632692,-460.0,0.00022043,6]
[366655540,1750380632702,-460.0,0.00022043,6]
[366655541,1750380632713,-460.0,0.00022043,6]
[366655542,1750380632723,-460.0,0.00022043,6]
[366655545,1750380632734,-160.0,0.00022043,2]
[366655547,1750380632743,-12544.68530873,0.00022043,2]
[366655548,1750380632759,-269.06,0.00022316,6]
[366655549,1750380632768,-233.27,0.00022316,6]
[366655550,1750380632779,-511.52,0.00022464,6]
[366655551,1750380632789,-162.865451,0.00022505,2]
[366655552,1750380632799,-160.0,0.00022519,2]
[366655553,1750380632809,-511.52,0.00022738,6]
[366655554,1750380632818,-168.208,0.00022739,2]
[366655555,1750380632828,-160.0,0.00022831,2]
[366655556,1750380632838,-160.0,0.00022831,2]
[366655557,1750380632849,-836.1357872,0.00022852,2]
[366655558,1750380632859,-845.93775772,0.00022852,2]
[366655559,1750380632868,-230.0259007,0.00022852,2]
[366655560,1750380632878,-160.0,0.00022852,2]
[366655561,1750380632889,-424.78309573,0.00022852,2]
[366655562,1750380632900,-1688.0,0.00022938,2]
[366655563,1750380632910,-207.4,0.00022938,2]
[366655564,1750380632920,-1206.00130259,0.00022993,2]
[366655565,1750380632930,-511.52,0.00023012,6]
[366655566,1750380632941,-460.0,0.00023024,6]
[366655567,1750380632950,-460.0,0.00023024,6]
[366655568,1750380632960,-460.0,0.00023024,6]
[366655569,1750380632970,-460.0,0.00023024,6]
[366655570,1750380632980,-460.0,0.00023024,6]
[366655571,1750380632990,-460.0,0.00023024,6]
[366655572,1750380633001,-460.0,0.00023024,6]
[366655573,1750380633010,-460.0,0.00023024,6]
[366655574,1750380633020,-554.15652494,0.00023024,6]
[366655575,1750380633031,-5000.0,0.0002304,2]
[366655576,1750380633041,-500.0,0.0002304,2]
[366655577,1750380633055,-939.08365684,0.0002304,2]
[366655578,1750380633066,-500.0,0.0002304,2]
[366655579,1750380633076,-500.0,0.0002304,2]
[366655580,1750380633087,-500.0,0.0002304,2]
[366655581,1750380633101,-500.0,0.0002304,2]
[366655582,1750380633111,-500.0,0.0002304,2]
[366655583,1750380633124,-500.0,0.0002304,2]
[366655584,1750380633134,-500.0,0.0002304,2]
[366655585,1750380633144,-500.0,0.0002304,2]
[366655586,1750380633153,-500.0,0.0002304,2]
[366655587,1750380633163,-500.0,0.0002304,2]
[366655588,1750380633175,-500.0,0.0002304,2]
[366655589,1750380633185,-500.0,0.0002304,2]
[366655590,1750380633195,-500.0,0.0002304,2]
[366655591,1750380633204,-535.97644517,0.0002304,2]
[366655592,1750380633214,-181.41400801,0.00023198,6]
[366655593,1750380633224,-470.06,0.00023198,6]
[366655594,1750380633234,-1909.88,0.00023198,6]
[366655595,1750380633244,-201.87814752,0.00023198,6]
[366655596,1750380633254,-310.71500004,0.00023198,6]
[366655597,1750380633264,-460.0,0.00023198,6]
[366655598,1750380633273,-412.45,0.000232,2]
[366655599,1750380633284,-213.47708638,0.00023247,2]
[366655600,1750380633296,-511.52,0.00023286,6]
[366655601,1750380633306,-460.0,0.00023298,6]
[366655602,1750380633316,-500.0,0.0002333,2]
[366655603,1750380633490,-500.0,0.000234,2]
[366655604,1750380633502,-1909.88,0.00023472,6]
[366655605,1750380633512,-460.0,0.00023472,6]
[366655606,1750380633522,-460.0,0.00023472,6]
[366655607,1750380633532,-1584.92,0.00023542,2]
[366655608,1750380633541,-511.52,0.0002356,6]
[366655609,1750380633553,-460.0,0.00023572,6]
[366655610,1750380633564,-5000.0,0.00023588,2]
[366655611,1750380633574,-1909.88,0.00023746,6]
[366655612,1750380633586,-460.0,0.00023746,6]
[366655613,1750380633596,-460.0,0.00023746,6]
[366655614,1750380633606,-160.0,0.00023799,2]
[366655615,1750380633617,-1254.53813152,0.000238,2]
[366655616,1750380633628,-1000.0,0.000238,3]
[366655617,1750380633638,-1000.0,0.000238,4]
[366655618,1750380633649,-1000.0,0.000238,5]
[366655619,1750380633659,-151.0,0.000238,7]
[366655620,1750380633669,-151.0,0.000238,7]
[366655621,1750380633679,-151.0,0.000238,7]
[366655622,1750380633689,-151.0,0.000238,7]
[366655623,1750380633699,-151.0,0.000238,7]
[366655624,1750380633710,-511.52,0.00023834,6]
[366655625,1750380633720,-460.0,0.00023846,6]
[366655626,1750380633730,-168.0,0.00023872,2]
[366655627,1750380633741,-500.0,0.00023876,2]
[366655628,1750380633751,-406.0,0.00023922,2]
[366655629,1750380633761,-420.0,0.00023951,2]
[366655630,1750380633770,-4587.0,0.00023952,2]
[366655631,1750380633780,-420.0,0.00023952,2]
[366655632,1750380633790,-500.0,0.00023999,2]
[366655633,1750380633801,-10000.0,0.00024,7]
[366655634,1750380633812,-151.04116647,0.00024,2]
[366655635,1750380633822,-160.0,0.00024,7]
[366655636,1750380633833,-213.47708638,0.00024,7]
[366655637,1750380633843,-12544.68530873,0.00024,7]
[366655638,1750380633853,-424.78309573,0.00024,7]
[366655639,1750380633863,-160.0,0.00024,7]
[366655640,1750380633873,-845.93775772,0.00024,7]
[366655641,1750380633883,-230.0259007,0.00024,7]
[366655642,1750380633892,-160.0,0.00024,7]
[366655643,1750380633903,-836.1357872,0.00024,7]
[366655644,1750380633913,-1909.88,0.0002402,6]
[366655645,1750380633923,-460.0,0.0002402,6]
[366655646,1750380633933,-460.0,0.0002402,6]
[366655647,1750380633943,-511.52,0.00024108,6]
[366655648,1750380633954,-460.0,0.0002412,6]
[366655649,1750380633976,-5000.0,0.00024136,2]
[366655650,1750380633990,-1909.88,0.00024294,6]
[366655651,1750380634001,-460.0,0.00024294,6]
[366655652,1750380634012,-460.0,0.00024294,6]
[366655653,1750380634023,-215.0738,0.00024307,2]
[366655654,1750380634033,-2200.0,0.00024349,2]
[366655655,1750380634044,-680.59,0.00024373,3]
[366655656,1750380634054,-340.3,0.00024373,3]
[366655657,1750380634065,-170.15,0.00024373,3]
[366655658,1750380634075,-510.45,0.00024373,3]
[366655659,1750380634085,-511.52,0.00024382,6]
[366655660,1750380634096,-369.64,0.00024394,6]
[366655661,1750380634107,-1407.630801,0.00024401,3]
[366655662,1750380634120,-500.0,0.00024417,2]
[366655663,1750380634131,-160.0,0.00024498,3]
[366655664,1750380634141,-1909.88,0.00024568,6]
[366655665,1750380634151,-460.0,0.00024568,6]
[366655666,1750380634163,-460.0,0.00024568,6]
[366655667,1750380634174,-46087.9708666,0.00024598,2]
[366655668,1750380634190,-30040.55816899,0.00024598,2]
[366655669,1750380634203,-4737.39643018,0.00024598,2]
[366656379,1750380811031,200.0,0.00024572,120]
[366656380,1750380931915,200.0,0.00024498,120]
[366656381,1750380954127,162.874638,0.00013699,2]
[366656384,1750381091152,637.2,0.00024658,120]
[366656387,1750381222864,2000.0,0.00021157,120]
[366656388,1750381291895,200.0,0.0002464,120]
[366656389,1750381351317,200.0,0.00024558,120]
[366656390,1750381411155,200.0,0.00023816,120]
[366656391,1750381694683,2108.49366,0.0002464,120]
[366656392,1750381712492,200.0,0.00024629,120]
[366656399,1750381750078,1534.39967875,0.000202,2]
[366656400,1750381830831,200.0,0.00023948,120]
[366656420,1750381832818,-153.77,0.00020753,18]
[366656421,1750381832831,-791.98,0.00021584,2]
[366656422,1750381832842,-162.874638,0.00021918,2]
[366656423,1750381832853,-300.0,0.00022042,2]
[366656424,1750381832866,-300.0,0.00022042,2]
[366656425,1750381832879,-400.0,0.00022043,6]
[366656426,1750381832891,-1000.0,0.00022043,6]
[366656427,1750381832904,-460.0,0.00022043,6]
[366656428,1750381832918,-460.0,0.00022043,6]
[366656430,1750381832930,-460.0,0.00022043,6]
[366656431,1750381832943,-460.0,0.00022043,6]
[366656432,1750381832959,-460.0,0.00022043,6]
[366656433,1750381832975,-460.0,0.00022043,6]
[366656435,1750381832987,-460.0,0.00022043,6]
[366656436,1750381832999,-400.0,0.00022043,6]
[366656438,1750381833012,-440.74012256,0.00022198,6]
[366656439,1750381833024,-460.0,0.00022198,6]
[366656441,1750381833037,-460.0,0.00022198,6]
[366656443,1750381833051,-460.0,0.00022198,6]
[366656444,1750381833062,-460.0,0.00022198,6]
[366656445,1750381833075,-460.0,0.00022198,6]
[366656446,1750381833086,-460.0,0.00022198,6]
[366656447,1750381833098,-257.8,0.00022198,6]
[366656448,1750381833109,-460.0,0.00022198,6]
[366656449,1750381833124,-460.0,0.00022198,6]
[366656450,1750381833139,-460.0,0.00022198,6]
[366656451,1750381833151,-460.0,0.00022198,6]
[366656452,1750381833164,-460.0,0.00022198,6]
[366656453,1750381833178,-460.0,0.00022198,6]
[366656454,1750381833191,-460.0,0.00022198,6]
[366656456,1750381833204,-460.0,0.00022199,6]
[366656457,1750381833219,-460.0,0.00022199,6]
[366656458,1750381833230,-460.0,0.00022199,6]
[366656459,1750381833243,-460.0,0.00022199,6]
[366656460,1750381833255,-1661.36,0.00022199,6]
[366656461,1750381833267,-460.0,0.00022199,6]
[366656462,1750381833277,-460.0,0.00022199,6]
[366656463,1750381833288,-460.0,0.00022199,6]
[366656464,1750381833300,-460.0,0.00022199,6]
[366656465,1750381833312,-322.11756725,0.00022199,6]
[366656466,1750381833324,-460.0,0.00022199,6]
[366656467,1750381833337,-460.0,0.00022199,6]
[366656468,1750381833350,-460.0,0.00022199,6]
[366656469,1750381833361,-460.0,0.00022199,6]
[366656470,1750381833374,-460.0,0.00022199,6]
[366656471,1750381833388,-460.0,0.00022199,6]
[366656472,1750381833400,-460.0,0.00022199,6]
[366656473,1750381833412,-563.30582452,0.00022199,6]
[366656474,1750381833426,-460.0,0.00022199,6]
[366656475,1750381833438,-460.0,0.00022199,6]
[366656476,1750381833451,-460.0,0.00022199,6]
[366656477,1750381833464,-460.0,0.00022199,6]
[366656478,1750381833478,-3000.0,0.000222,2]
[366656479,1750381833491,-3000.0,0.0002221,2]
[366656480,1750381833502,-168.209,0.0002221,2]
[366656481,1750381833513,-3000.0,0.0002222,2]
[366656482,1750381833524,-460.0,0.00022229,6]
[366656483,1750381833535,-460.0,0.00022229,6]
[366656484,1750381833545,-199.42891807,0.00022229,6]
[366656485,1750381833652,-260.57108193,0.00022229,6]
[366656486,1750381833664,-460.0,0.00022229,6]
[366656487,1750381833675,-460.0,0.00022229,6]
[366656488,1750381833686,-460.0,0.00022229,6]
[366656489,1750381833698,-3000.0,0.0002223,2]